fUSD/lending_fUSD_20240907
["ID","MTS","AMOUNT","RATE_DAILY","PERIOD"]
[337474021,1725678689934,-2113.53,0.00014999,2]
[337474022,1725678689943,-2113.53,0.00014999,2]
[337474023,1725678689953,-2113.53,0.00014999,2]
[337474024,1725678689964,-2113.66205665,0.00014999,2]
[337474025,1725678689973,-883.86,0.00014999,2]
[337474026,1725678689982,-883.86,0.00014999,2]
[337474027,1725678689992,-883.86,0.00014999,2]
[337474028,1725678690002,-883.86,0.00014999,2]
[337474029,1725678690011,-883.86,0.00014999,2]
[337474030,1725678690020,-883.93992105,0.00014999,2]
[337474031,1725678690030,-704.11,0.00014999,2]
[337474032,1725678690039,-704.11,0.00014999,2]
[337474033,1725678690050,-704.11,0.00014999,2]
[337474034,1725678690059,-504.95,0.00014999,2]
[337474035,1725678690068,-704.11,0.00014999,2]
[337474036,1725678690077,-504.95,0.00014999,2]
[337474037,1725678690087,-704.11,0.00014999,2]
[337474038,1725678690097,-504.95,0.00014999,2]
[337474039,1725678690107,-704.11,0.00014999,2]
[337474040,1725678690116,-504.95,0.00014999,2]
[337474041,1725678690126,-501.13599662,0.00014999,2]
[337474042,1725678690135,-401.11,0.00014999,2]
[337474043,1725678690144,-704.11,0.00014999,2]
[337474044,1725678690153,-504.95,0.00014999,2]
[337474045,1725678690162,-704.11,0.00014999,2]
[337474046,1725678690171,-504.95,0.00014999,2]
[337474047,1725678690180,-500.0,0.00014999,2]
[337474048,1725678690189,-504.95,0.00014999,2]
[337474049,1725678690199,-704.11,0.00014999,2]
[337474050,1725678690208,-500.0,0.00014999,2]
[337474051,1725678690217,-504.95,0.00014999,2]
[337474052,1725678690226,-704.11,0.00014999,2]
[337474053,1725678690235,-500.0,0.00014999,2]
[337474054,1725678690245,-504.95,0.00014999,2]
[337474055,1725678690254,-704.11,0.00014999,2]
[337474056,1725678690264,-500.0,0.00014999,2]
[337474057,1725678690273,-704.11,0.00014999,2]
[337474058,1725678690282,-504.95,0.00014999,2]
[337474059,1725678690292,-500.0,0.00014999,2]
[337474060,1725678690302,-704.14786594,0.00014999,2]
[337474061,1725678690311,-504.95,0.00014999,2]
[337474062,1725678690321,-500.0,0.00014999,2]
[337474063,1725678690331,-504.95,0.00014999,2]
[337474064,1725678690341,-500.0,0.00014999,2]
[337474065,1725678690350,-505.17336422,0.00014999,2]
[337474066,1725678690359,-500.0,0.00014999,2]
[337474067,1725678690368,-500.0,0.00014999,2]
[337474068,1725678690377,-500.0,0.00014999,2]
[337474069,1725678690387,-500.0,0.00014999,2]
[337474070,1725678690396,-163.61506146,0.00014999,2]
[337474071,1725678690405,-518.55,0.00014999,2]
[337474072,1725678690415,-518.55,0.00014999,2]
[337474073,1725678690423,-518.55,0.00014999,2]
[337474074,1725678690433,-518.55,0.00014999,2]
[337474075,1725678690442,-518.55,0.00014999,2]
[337474076,1725678690451,-518.63538517,0.00014999,2]
[337474077,1725678690461,-500.0,0.00014999,2]
[337474078,1725678690471,-500.0,0.00014999,2]
[337474079,1725678690480,-500.0,0.00014999,2]
[337474080,1725678690490,-500.0,0.00014999,2]
[337474081,1725678690499,-500.0,0.00014999,2]
[337474082,1725678690509,-500.0,0.00014999,2]
[337474083,1725678690519,-439.58975633,0.00014999,2]
[337474084,1725678690528,-1362.91,0.00014999,2]
[337474085,1725678690538,-908.15,0.00014999,2]
[337474086,1725678690547,-1362.91,0.00014999,2]
[337474087,1725678690557,-908.15,0.00014999,2]
[337474088,1725678690567,-1362.91,0.00014999,2]
[337474089,1725678690577,-908.15,0.00014999,2]
[337474090,1725678690587,-1362.91,0.00014999,2]
[337474091,1725678690596,-908.15,0.00014999,2]
[337474092,1725678690605,-1362.91,0.00014999,2]
[337474093,1725678690615,-908.15,0.00014999,2]
[337474094,1725678690625,-1362.91,0.00014999,2]
[337474095,1725678690634,-500.0,0.00014999,2]
[337474096,1725678690643,-908.15,0.00014999,2]
[337474097,1725678690653,-1362.91,0.00014999,2]
[337474098,1725678690662,-500.0,0.00014999,2]
[337474099,1725678690671,-500.0,0.00014999,2]
[337474100,1725678690681,-615.91820873,0.00014999,2]
[337474101,1725678690909,-746.99179127,0.00014999,2]
[337474102,1725678690919,-500.0,0.00014999,2]
[337474103,1725678690928,-908.15,0.00014999,2]
[337474104,1725678690938,-1362.91,0.00014999,2]
[337474105,1725678690948,-500.0,0.00014999,2]
[337474106,1725678690960,-315.90596905,0.00014999,2]
[337474107,1725678690970,-633.99371426,0.00014999,2]
[337474108,1725678690979,-908.15,0.00014999,2]
[337474109,1725678690989,-1362.91,0.00014999,2]
[337474110,1725678690999,-530.34717361,0.00014999,2]
[337474111,1725678691008,-908.15,0.00014999,2]
[337474112,1725678691019,-1362.91,0.00014999,2]
[337474113,1725678691028,-908.15,0.00014999,2]
[337474114,1725678691038,-1362.91,0.00014999,2]
[337474115,1725678691048,-908.15,0.00014999,2]
[337474116,1725678691058,-1363.0023714,0.00014999,2]
[337474117,1725678691067,-908.15,0.00014999,2]
[337474118,1725678691076,-908.374429,0.00014999,2]
[337474119,1725678691086,-1424.33,0.00014999,2]
[337474120,1725678691095,-1424.33,0.00014999,2]
[337474121,1725678691105,-1424.33,0.00014999,2]
[337474122,1725678691115,-1424.33,0.00014999,2]
[337474123,1725678691124,-1424.33,0.00014999,2]
[337474124,1725678691133,-1424.33,0.00014999,2]
[337474125,1725678691143,-1424.33,0.00014999,2]
[337474126,1725678691152,-1424.33,0.00014999,2]
[337474127,1725678691161,-1424.33,0.00014999,2]
[337474128,1725678691170,-1424.33,0.00014999,2]
[337474129,1725678691180,-1424.33,0.00014999,2]
[337474130,1725678691190,-1424.33,0.00014999,2]
[337474131,1725678691199,-1424.565788,0.00014999,2]
[337474132,1725678691208,-500.0,0.00014999,2]
[337474133,1725678691218,-500.0,0.00014999,2]
[337474134,1725678691227,-500.0,0.00014999,2]
[337474135,1725678691236,-500.0,0.00014999,2]
[337474136,1725678691245,-500.0,0.00014999,2]
[337474137,1725678691254,-500.0,0.00014999,2]
[337474138,1725678691263,-500.0,0.00014999,2]
[337474139,1725678691272,-372.61831299,0.00014999,2]
[337474140,1725678691281,-500.0,0.00014999,2]
[337474141,1725678691290,-500.0,0.00014999,2]
[337474142,1725678691301,-150.21,0.00014999,2]
[337474143,1725678691310,-465.36274299,0.00014999,2]
[337474144,1725678691334,-34.63725701,0.00014999,2]
[337474145,1725678691343,-500.0,0.00014999,2]
[337474146,1725678691352,-649.33,0.00014999,2]
[337474147,1725678691361,-500.0,0.00014999,2]
[337474148,1725678691371,-258.40995618,0.00014999,2]
[337474149,1725678691383,-390.92004382,0.00014999,2]
[337474150,1725678691392,-148.14278759,0.00014999,2]
[337474151,1725678691405,-351.85721241,0.00014999,2]
[337474152,1725678691414,-649.33,0.00014999,2]
[337474153,1725678691423,-500.0,0.00014999,2]
[337474154,1725678691433,-649.33,0.00014999,2]
[337474155,1725678691442,-500.0,0.00014999,2]
[337474156,1725678691451,-649.33,0.00014999,2]
[337474157,1725678691460,-500.0,0.00014999,2]
[337474158,1725678691471,-649.33,0.00014999,2]
[337474159,1725678691481,-193.231209,0.00014999,2]
[337474160,1725678691491,-649.33,0.00014999,2]
[337474161,1725678691502,-649.33,0.00014999,2]
[337474162,1725678691511,-649.33,0.00014999,2]
[337474163,1725678691522,-649.33,0.00014999,2]
[337474164,1725678691532,-649.33,0.00014999,2]
[337474165,1725678691542,-649.33,0.00014999,2]
[337474166,1725678691552,-649.43785381,0.00014999,2]
[337474167,1725678691561,-500.0,0.00014999,2]
[337474168,1725678691571,-500.0,0.00014999,2]
[337474169,1725678691580,-500.0,0.00014999,2]
[337474170,1725678691595,-500.0,0.00014999,2]
[337474171,1725678691606,-500.0,0.00014999,2]
[337474172,1725678691616,-1035.58,0.00014999,2]
[337474173,1725678691627,-500.0,0.00014999,2]
[337474174,1725678691639,-1035.58,0.00014999,2]
[337474175,1725678691651,-500.0,0.00014999,2]
[337474176,1725678691661,-500.0,0.00014999,2]
[337474177,1725678691671,-1035.58,0.00014999,2]
[337474178,1725678691683,-500.0,0.00014999,2]
[337474179,1725678691694,-1035.58,0.00014999,2]
[337474180,1725678691705,-500.0,0.00014999,2]
[337474181,1725678691716,-1035.58,0.00014999,2]
[337474182,1725678691725,-165.86958519,0.00014999,2]
[337474183,1725678691735,-1035.58,0.00014999,2]
[337474184,1725678691745,-1035.58,0.00014999,2]
[337474185,1725678691755,-1035.58,0.00014999,2]
[337474186,1725678691767,-1035.58,0.00014999,2]
[337474187,1725678691777,-1035.58,0.00014999,2]
[337474188,1725678691786,-1035.58,0.00014999,2]
[337474189,1725678691798,-1035.58,0.00014999,2]
[337474190,1725678691807,-1035.76,0.00014999,2]
[337474191,1725678691816,-157.236705,0.00014999,3]
[337474192,1725678691825,-831.9,0.00014999,2]
[337474193,1725678691836,-831.9,0.00014999,2]
[337474194,1725678691846,-831.9,0.00014999,2]
[337474195,1725678691855,-831.9,0.00014999,2]
[337474196,1725678691865,-831.9,0.00014999,2]
[337474197,1725678691877,-831.9,0.00014999,2]
[337474198,1725678691889,-831.9,0.00014999,2]
[337474199,1725678691899,-500.0,0.00014999,2]
[337474200,1725678691908,-831.9,0.00014999,2]
[337474201,1725678691919,-500.0,0.00014999,2]
[337474202,1725678691930,-831.9,0.00014999,2]
[337474203,1725678691940,-500.0,0.00014999,2]
[337474204,1725678691950,-500.0,0.00014999,2]
[337474205,1725678691961,-500.0,0.00014999,2]
[337474206,1725678691970,-500.0,0.00014999,2]
[337474207,1725678691979,-500.0,0.00014999,2]
[337474208,1725678691989,-500.0,0.00014999,2]
[337474209,1725678691999,-428.42166386,0.00014999,2]
[337474210,1725678692009,-831.9,0.00014999,2]
[337474211,1725678692018,-540.67256,0.00014999,2]
[337474212,1725678692028,-831.9,0.00014999,2]
[337474213,1725678692038,-540.67256,0.00014999,2]
[337474214,1725678692047,-831.9,0.00014999,2]
[337474215,1725678692057,-832.06867519,0.00014999,2]
[337474216,1725678692067,-354.99462879,0.00014999,2]
[337474217,1725678692083,-240.79537121,0.00014999,2]
[337474218,1725678692092,-175.68066275,0.00014999,2]
[337474219,1725678692291,-935.898057,0.00013008,2]
[337474220,1725678692304,-2929.92659725,0.00013008,2]
[337474221,1725678692313,-564.62949747,0.00014694,2]
[337474222,1725678692323,-515.53897252,0.00014794,2]
[337474223,1725678692332,-520.81,0.00014998,2]
[337474224,1725678692342,-520.81,0.00014998,2]
[337474225,1725678692351,-420.10933725,0.00014999,2]
[337474226,1725678692361,-595.79,0.00014999,2]
[337474227,1725678692370,-595.79,0.00014999,2]
[337474228,1725678692379,-350.884209,0.00014999,2]
[337474229,1725678692986,-244.905791,0.00014999,2]
[337474230,1725678692995,-176.42584845,0.00014999,2]
[337474231,1725678693006,-419.36415155,0.00014999,2]
[337474232,1725678693016,-595.79,0.00014999,2]
[337474233,1725678693026,-595.79,0.00014999,2]
[337474234,1725678693035,-595.79,0.00014999,2]
[337474235,1725678693045,-595.79,0.00014999,2]
[337474236,1725678693056,-595.79,0.00014999,2]
[337474237,1725678693066,-541.61024438,0.00014999,2]
[337474238,1725678693079,-54.17975562,0.00014999,2]
[337474239,1725678693089,-500.0,0.00014999,2]
[337474240,1725678693100,-595.85207173,0.00014999,2]
[337474241,1725678693110,-214.18812885,0.00014999,2]
[337474242,1725678693122,-285.81187115,0.00014999,2]
[337474243,1725678693132,-500.0,0.00014999,2]
[337474244,1725678693142,-500.0,0.00014999,2]
[337474245,1725678693152,-500.0,0.00014999,2]
[337474246,1725678693162,-500.0,0.00014999,2]
[337474247,1725678693172,-349.80587501,0.00014999,2]
[337474248,1725678693182,-500.0,0.00014999,2]
[337474249,1725678693192,-563.57118542,0.00014999,2]
[337474250,1725678693202,-500.0,0.00014999,2]
[337474251,1725678693212,-500.0,0.00014999,2]
[337474252,1725678693222,-500.0,0.00014999,2]
[337474253,1725678693231,-500.0,0.00014999,2]
[337474254,1725678693242,-185.34,0.00014999,2]
[337474255,1725678693251,-151.0,0.00014999,2]
[337474256,1725678693261,-151.0,0.00014999,2]
[337474257,1725678693270,-524.3,0.00014999,2]
[337474258,1725678693280,-524.3,0.00014999,2]
[337474259,1725678693290,-524.3,0.00014999,2]
[337474260,1725678693301,-524.3,0.00014999,2]
[337474261,1725678693311,-664.2,0.00014999,2]
[337474262,1725678693320,-664.2,0.00014999,2]
[337474263,1725678693330,-524.3,0.00014999,2]
[337474264,1725678693339,-664.2,0.00014999,2]
[337474265,1725678693349,-524.3,0.00014999,2]
[337474266,1725678693359,-664.2,0.00014999,2]
[337474267,1725678693369,-306.36321076,0.00014999,2]
[337474268,1725678693391,-217.93678924,0.00014999,2]
[337474269,1725678693401,-71.16321078,0.00014999,2]
[337474270,1725678693413,-593.03678922,0.00014999,2]
[337474271,1725678693423,-524.3,0.00014999,2]
[337474272,1725678693432,-346.72727624,0.00014999,2]
[337474273,1725678693444,-177.57272376,0.00014999,2]
[337474274,1725678693454,-664.2,0.00014999,2]
[337474275,1725678693464,-524.3,0.00014999,2]
[337474276,1725678693474,-664.2,0.00014999,2]
[337474277,1725678693483,-664.2,0.00014999,2]
[337474278,1725678693493,-524.3,0.00014999,2]
[337474279,1725678693502,-664.2,0.00014999,2]
[337474280,1725678693512,-524.3,0.00014999,2]
[337474281,1725678693521,-664.2,0.00014999,2]
[337474282,1725678693531,-524.46562375,0.00014999,2]
[337474283,1725678693540,-664.2,0.00014999,2]
[337474284,1725678693551,-664.2,0.00014999,2]
[337474285,1725678693560,-664.2585615,0.00014999,2]
[337474286,1725678693570,-1221.82,0.00014999,2]
[337474287,1725678693580,-1221.82,0.00014999,2]
[337474288,1725678693589,-1.85156193,0.00014999,2]
[337474289,1725678693602,-1219.96843807,0.00014999,2]
[337474290,1725678693611,-539.71,0.00014999,2]
[337474291,1725678693621,-539.71,0.00014999,2]
[337474292,1725678693630,-627.98678972,0.00014999,2]
[337474293,1725678693642,-448.95942964,0.00014999,2]
[337474294,1725678693653,-144.87378064,0.00014999,2]
[337474295,1725678693663,-341.31121937,0.00014999,2]
[337474296,1725678693674,-833.87987711,0.00014999,2]
[337474297,1725678693685,-46.62890352,0.00014999,2]
[337474298,1725678693694,-539.71,0.00014999,2]
[337474299,1725678693706,-513.84029478,0.00014999,2]
[337474300,1725678693716,-144.21494142,0.00014999,2]
[337474301,1725678693728,-395.49505858,0.00014999,2]
[337474302,1725678693738,-299.04251392,0.00014999,2]
[337474303,1725678693750,-922.77748608,0.00014999,2]
[337474304,1725678693760,-801.03224764,0.00014999,2]
[337474305,1725678693829,-387.7317709,0.00014999,2]
[337474306,1725678693842,-33.05598146,0.00014999,2]
[337474307,1725678693852,-288.74401854,0.00014999,2]
[337474308,1725678693864,-250.96598146,0.00014999,2]
[337474309,1725678693873,-1221.82,0.00014999,2]
[337474310,1725678693887,-315.85002222,0.00014999,2]
[337474311,1725678693899,-224.09750859,0.00014999,2]
[337474312,1725678693908,-1221.82,0.00014999,2]
[337474313,1725678693918,-1221.82,0.00014999,2]
[337474314,1725678693929,-408.89658057,0.00014999,2]
[337474315,1725678693942,-314.99999994,0.00014999,2]
[337474316,1725678693958,-564.62949747,0.00014797,2]
[337474317,1725678693969,-497.92341949,0.00014999,2]
[337474318,1725678693980,-1221.82,0.00014999,2]
[337474319,1725678693990,-1221.9619559,0.00014999,2]
[337474320,1725678694001,-151.0,0.00014999,2]
[337474321,1725678694276,-151.0,0.00014999,2]
[337474322,1725678694286,-500.0,0.00014999,2]
[337474323,1725678694296,-232.20570939,0.00014999,2]
[337474324,1725678694307,-358.460702,0.00014999,2]
[337474325,1725678694317,-358.460702,0.00014999,2]
[337474326,1725678694327,-358.460702,0.00014999,2]
[337474327,1725678694337,-500.0,0.00014999,2]
[337474328,1725678694346,-500.0,0.00014999,2]
[337474329,1725678694356,-358.460702,0.00014999,2]
[337474330,1725678694366,-446.01443667,0.00014999,2]
[337474331,1725678694376,-358.460702,0.00014999,2]
[337474332,1725678694385,-358.460702,0.00014999,2]
[337474333,1725678694395,-227.17053209,0.00014999,2]
[337474334,1725678694405,-500.0,0.00014999,2]
[337474335,1725678694415,-523.17,0.00014999,2]
[337474336,1725678694424,-5508.41,0.00014999,2]
[337474337,1725678694434,-5508.41,0.00014999,2]
[337474338,1725678694443,-4423.09511844,0.00014999,2]
[337474341,1725678769967,-469.61605104,0.00012933,2]
[337474342,1725678940445,150.0,0.00010959,2]
[337474343,1725678940469,46.89,0.00010959,2]
[337474345,1725679101471,150.0,0.00011673,2]
[337474346,1725679101494,150.0,0.00011673,2]
[337474347,1725679101516,150.0,0.00011673,2]
[337474348,1725679101536,94.04,0.00011673,2]
[337474360,1725679529761,150.0,0.000101,2]
[337474361,1725679529782,150.0,0.000101,2]
[337474362,1725679529802,150.0,0.000101,2]
[337474363,1725679529822,150.0,0.000101,2]
[337474364,1725679529843,150.0,0.000101,2]
[337474365,1725679529863,150.0,0.000101,2]
[337474366,1725679529884,150.0,0.000101,2]
[337474367,1725679529904,150.0,0.000101,2]
[337474368,1725679529924,150.0,0.000101,2]
[337474369,1725679529945,150.0,0.000101,2]
[337474370,1725679529967,150.0,0.000101,2]
[337474371,1725679529988,150.0,0.000101,2]
[337474372,1725679530009,150.0,0.000101,2]
[337474373,1725679530030,150.0,0.000101,2]
[337474374,1725679530052,150.0,0.000101,2]
[337474375,1725679530073,150.0,0.000101,2]
[337474376,1725679530094,150.0,0.000101,2]
[337474377,1725679530117,150.0,0.000101,2]
[337474378,1725679530139,150.0,0.000101,2]
[337474379,1725679530165,51626.91879157,0.000101,2]
[337474380,1725679552065,150.0,0.00010988,2]
[337474381,1725679552087,150.0,0.00010988,2]
[337474382,1725679552108,150.0,0.00010988,2]
[337474383,1725679552132,247.52438471,0.00010988,2]
[337474384,1725679552154,641.66318857,0.00010988,2]
[337474385,1725679555098,1042.6668699,6.94e-05,2]
[337474390,1725679578397,150.0,0.00010959,2]
[337474391,1725679578419,2.94,0.00010959,2]
[337474392,1725679623775,150.0,0.00010693,2]
[337474393,1725679623829,150.0,0.00010693,2]
[337474394,1725679623872,150.0,0.00010693,2]
[337474395,1725679623896,66.83,0.00010693,2]
[337474411,1725679719242,182.22940412,0.00031415,120]
[337474444,1725679831801,-161.55,0.00012228,2]
[337474445,1725679831812,-166.30685687,0.00012238,2]
[337474446,1725679831823,-726.81430913,0.00012238,2]
[337474447,1725679831833,-43.41959502,0.00012277,2]
[337474448,1725679831844,-956.58040498,0.00012277,2]
[337474449,1725679831854,-210.78510507,0.000123,2]
[337474450,1725679831863,-1800.84690269,0.0001233,2]
[337474451,1725679831873,-306.51,0.0001243,2]
[337474452,1725679831882,-250.0,0.00012446,2]
[337474453,1725679831891,-158.8,0.00012487,2]
[337474454,1725679831900,-300.0,0.00012501,2]
[337474455,1725679831910,-2574.5751209,0.00012502,2]
[337474456,1725679831923,-1865.69249295,0.00012502,2]
[337474457,1725679831934,-12227.86238615,0.00012502,2]
[337474458,1725679831944,-250.0,0.00012626,2]
[337474459,1725679831954,-500.0,0.0001264,2]
[337474460,1725679831963,-516.83,0.00012957,2]
[337474461,1725679831981,-104.72549532,0.00012973,2]
[337474462,1725679831993,-395.27450468,0.00012973,2]
[337474463,1725679832002,-500.0,0.00012973,2]
[337474464,1725679832012,-188.20983249,0.0001299,2]
[337474465,1725679832022,-1318.02220625,0.0001299,2]
[337474466,1725679832032,-499.96352472,0.0001299,2]
[337474467,1725679832041,-357.21870566,0.0001299,2]
[337474468,1725679832050,-150.72,0.0001299,2]
[337474469,1725679832060,-150.72,0.0001299,2]
[337474470,1725679832071,-150.72,0.0001299,2]
[337474471,1725679832080,-150.72,0.0001299,2]
[337474472,1725679832090,-150.72,0.0001299,2]
[337474473,1725679832100,-150.72,0.0001299,2]
[337474475,1725679832110,-150.72,0.0001299,2]
[337474477,1725679832120,-150.72,0.0001299,2]
[337474479,1725679832130,-150.72,0.0001299,2]
[337474481,1725679832139,-150.72,0.0001299,2]
[337474482,1725679832149,-150.72,0.0001299,2]
[337474483,1725679832158,-167.12013733,0.0001299,2]
[337474484,1725679832167,-150.0,0.00012998,2]
[337474485,1725679832176,-500.0,0.00012999,2]
[337474486,1725679832186,-500.0,0.00012999,2]
[337474487,1725679832198,-500.0,0.00012999,2]
[337474488,1725679832208,-500.0,0.00012999,2]
[337474489,1725679832217,-552.79103084,0.00012999,2]
[337474490,1725679832227,-500.0,0.00012999,2]
[337474491,1725679832237,-500.0,0.00012999,2]
[337474492,1725679832246,-171.58745416,0.00012999,2]
[337474493,1725679832256,-500.0,0.00012999,2]
[337474494,1725679832266,-500.0,0.00012999,2]
[337474495,1725679832277,-499.99,0.00012999,2]
[337474496,1725679832287,-469459.83866218,0.00013,2]
[337474497,1725679832299,-2481.20419989,0.00013,2]
[337474498,1725679832310,-539.47059194,0.00013,2]
[337474499,1725679832321,-2637.74911535,0.00013,2]
[337474500,1725679832333,-555.90330277,0.00013,2]
[337474501,1725679832344,-751.39001507,0.00013,2]
[337474502,1725679832356,-1926.93036806,0.00013,2]
[337474503,1725679832368,-206593.42763305,0.00013,2]
[337474504,1725679832379,-1474.46617901,0.00013,2]
[337474505,1725679832390,-298.3,0.00013,2]
[337474506,1725679832401,-503.88900716,0.00013,2]
[337474507,1725679832412,-5764.29421644,0.00013,2]
[337474508,1725679832423,-976.47953325,0.00013,2]
[337474525,1725679837950,-9777.40127067,0.00013,2]
[337474526,1725679837962,-14005.94135658,0.00013,2]
[337474528,1725679838279,-1632.9959002,0.00013,2]
[337474529,1725679838291,-370.8995141,0.00013,2]
[337474530,1725679838302,-992.9739433,0.00013,2]
[337474531,1725679838313,-1079.19611686,0.00013,2]
[337474532,1725679838325,-965.47893929,0.00013,2]
[337474533,1725679838341,-1107.2408442,0.00013,2]
[337474534,1725679838352,-19177.27197511,0.00013,2]
[337474535,1725679838364,-1002.00817452,0.00013,2]
[337474536,1725679838375,-2388.94041669,0.00013,2]
[337474537,1725679838386,-1698.03970922,0.00013,2]
[337474538,1725679838397,-57499.99999999,0.00013,2]
[337474539,1725679838408,-1919.49092263,0.00013,2]
[337474544,1725679839937,-618.79637597,0.00013,2]
[337474545,1725679839948,-817.8603116,0.00013,2]
[337474546,1725679839960,-1598.09579299,0.00013,2]
[337474547,1725679839971,-760.11591725,0.00013,2]
[337474548,1725679839983,-401.71205352,0.00013,2]
[337474549,1725679839995,-3333.99104239,0.00013,2]
[337474550,1725679840098,-230190.45662143,0.00013,2]
[337474551,1725679840109,-5198.16634652,0.00013,2]
[337474552,1725679840467,-62165.98744174,0.00013,2]
[337474553,1725679840479,-411213.09194807,0.00013,2]
[337474555,1725679842746,-4959.53066576,0.00013,2]
[337474557,1725679842757,-4342.0000002,0.00013,2]
[337474558,1725679842770,-12013.5,0.00013,2]
[337474559,1725679842781,-16896.2586345,0.00013,2]
[337474560,1725679842792,-775.34387343,0.00013,2]
[337474561,1725679842803,-1930.16648209,0.00013,2]
[337474562,1725679842815,-7177.4547342,0.00013,2]
[337474563,1725679842826,-24981.44655814,0.00013,2]
[337474564,1725679842838,-71783.70110887,0.00013,2]
[337474565,1725679842897,-348462.07339354,0.00013,2]
[337474566,1725679842908,-3313.60911296,0.00013,2]
[337474567,1725679843312,-526.02,0.00013,2]
[337474568,1725679843323,-1851.26957679,0.00013,2]
[337474572,1725679845867,-1771.28239606,0.00013,2]
[337474573,1725679845878,-548.91094766,0.00013,2]
[337474574,1725679845889,-1597.37007335,0.00013,2]
[337474575,1725679846019,-1543.58513441,0.00013,2]
[337474586,1725680157924,150.0,0.00011,2]
[337474587,1725680157946,150.0,0.00011,2]
[337474588,1725680157969,150.0,0.00011,2]
[337474589,1725680157990,150.0,0.00011,2]
[337474590,1725680158013,150.0,0.00011,2]
[337474593,1725680318952,150.0,0.00010437,2]
[337474594,1725680318979,398.13,0.00010437,2]
[337474608,1725680775400,150.14513612,0.00011948,2]
[337474615,1725680854395,150.0,0.00011914,2]
[337474616,1725680854416,150.0,0.00011914,2]
[337474617,1725680854438,150.0,0.00011914,2]
[337474618,1725680854460,150.0,0.00011914,2]
[337474619,1725680854482,150.0,0.00011914,2]
[337474620,1725680854503,150.0,0.00011914,2]
[337474621,1725680854526,150.0,0.00011914,2]
[337474622,1725680854547,584.1523217,0.00011914,2]
[337474623,1725680892728,554.04,0.00010252,2]
[337474678,1725681005944,150.0,0.00010959,2]
[337474679,1725681005968,75.01,0.00010959,2]
[337474702,1725681031919,-292.34430382,0.00012014,2]
[337474703,1725681031929,-582.72,0.00012014,2]
[337474704,1725681031939,-250.0,0.00012113,2]
[337474705,1725681031948,-250.0,0.00012113,2]
[337474706,1725681031958,-168.69,0.00012213,2]
[337474707,1725681031967,-172.57,0.00012213,2]
[337474708,1725681031978,-1000.0,0.00012214,2]
[337474709,1725681031987,-516.2,0.00012306,2]
[337474710,1725681031997,-150.0,0.00012384,2]
[337474711,1725681032006,-695.12,0.00012464,2]
[337474712,1725681032015,-554.04,0.00012516,2]
[337474713,1725681032025,-423.16,0.00012535,2]
[337474714,1725681032034,-250.0,0.00012535,2]
[337474715,1725681032044,-158.8,0.00012568,2]
[337474716,1725681032054,-540.041776,0.00012637,2]
[337474717,1725681032064,-499.99,0.00012701,2]
[337474718,1725681032073,-797.6216,0.000128,2]
[337474719,1725681032082,-300.0,0.00012869,2]
[337474720,1725681032092,-344.4747827,0.0001287,2]
[337474721,1725681032101,-1024.97723,0.0001287,2]
[337474722,1725681032110,-150.0,0.00012892,2]